Cogmind - Beta 16.1 @@@ ROGUE MODE // 2026.04.12 @ 13:29:21 Player: M4-TR4 Result: Destroyed by D-53 Grenadier with Mini Grenade Launcher Performance ------------- Evolutions (0) 0 Regions Visited (3) 600 Robots Destroyed (13) 65 Value Destroyed (299) 299 Prototype IDs (1) 20 Alien Tech Used (0) 0 Bonus (-38) -38 TOTAL SCORE: 946 Bonus ------- Follower Combat Kills 81 Friendly Fire -119 Cogmind --------- Core Integrity 0/250 Matter 300/300 Energy 100/100 System Corruption 4% Temperature Cool (0) Movement Core (350) Ox6 Location -8/Recycling Parts ------- > --- POWER (1) -------- (None) > --- PROPULSION (2) --- (None) > --- UTILITY (2) ------ Large Storage Unit > --- WEAPON (2) ------- (None) > --- INVENTORY (15) --- Light Ion Engine Subdweller Monowheel Disposable Heat Sink Subdweller Optics Subdweller Laser Subdweller Laser Subdweller Beam Cannon Subdweller Beam Cannon Battle Rifle EMP Blaster Peak State ------------ > --- POWER ------------ Subdweller Power Source > --- PROPULSION ------- Compact Wheel Subdweller Monowheel > --- UTILITY ---------- Large Storage Unit V3-11A's Pendant > --- WEAPON ----------- Subdweller Machine Gun Barrage Gun > --- INVENTORY -------- Light Ion Engine Compact Wheel Subdweller Monowheel Disposable Heat Sink Subdweller Optics Subdweller Laser Subdweller Laser Subdweller Beam Cannon Subdweller Beam Cannon Battle Rifle EMP Blaster [Rating: 16] Favorites ----------- Power Light Ion Engine Engine Light Ion Engine Propulsion Compact Wheel Wheel Compact Wheel Utility Seismic Detector Device Seismic Detector Storage Large Storage Unit Protection Scrap Shield Weapon Assault Rifle Ballistic Gun Assault Rifle Special Weapon Mining Laser Build | -11 -10 -10 -8 ------- Run | Yrd Mat Sub Rec Slots Evolved . | . . . . Power . | . . . . Propulsion . | . . . . Utility . | . . . . Weapon . | . . . . Parts Attached 21 | 9 2 9 1 Power 2 | 1 . 1 . Engine 2 | 1 . 1 . Core . | . . . . Reactor . | . . . . Propulsion 5 | 2 . 2 1 Treads . | . . . . Leg . | . . . . Wheel 5 | 2 . 2 1 Hover . | . . . . Flight . | . . . . Utility 9 | 4 1 4 . Device 6 | 3 . 3 . Storage 2 | 1 1 . . Processor . | . . . . Hackware . | . . . . Protection 1 | . . 1 . Artifact . | . . . . Weapon 5 | 2 1 2 . Energy Gun . | . . . . Energy Cannon . | . . . . Ballistic Gun 4 | 2 . 2 . Ballistic Cannon . | . . . . Launcher . | . . . . Special Weapon 1 | . 1 . . Impact Weapon . | . . . . Slashing Weapon . | . . . . Piercing Weapon . | . . . . Special Melee Weapon . | . . . . Unidentified Prototypes 1 | . . 1 . Parts Lost 8 | . . 1 7 Power 1 | . . . 1 Propulsion 4 | . . 1 3 Utility 1 | . . . 1 Weapon 2 | . . . 2 Highest Loss Streak 7 | . . 1 7 To Critical Strikes . | . . . . Average Backups 10 | 5 12 8 10 Power 1 | 1 2 1 1 Propulsion 1 | 2 2 1 1 Utility 3 | . 3 2 2 Weapon 4 | 1 4 3 6 Tool/Special . | . . . . Unused Backups 20 | 3 1 7 9 Power 2 | . . 1 1 Propulsion 4 | 3 . . 1 Utility 3 | . . 2 1 Weapon 11 | . 1 4 6 Tool/Special . | . . . . Average Slot Usage (%) 97 | . 100 95 77 Engine 13 | . 14 14 11 Wheel 27 | . 28 27 22 Device 13 | . 14 12 11 Storage 12 | . 14 9 14 Ballistic Gun 21 | . 18 24 16 Special Weapon 6 | . 9 3 . Peak Build Rating 16 | 9 9 16 16 Average Rating 9 | 6 8 12 12 On Entrance 8 | . 7 9 16 Avg Prop Armor Cover (%) . | . . . . Naked Turns . | . . . . Heaviest Build 33 | 13 28 33 33 Greatest Support 36 | 26 26 36 36 Greatest Overweight (x) 6 | . 1 1 6 Average Overweight (x) . | . . . . Largest Inventory Capacity 15 | 8 15 15 15 Average Capacity 12 | 7 13 11 15 Most Carried 15 | 8 15 15 11 Average Carried 10 | 5 12 8 10 Final Capacity 15 | 8 15 15 15 Final Carried 15 | 8 15 11 10 Class Distribution -------------------- 81% | Mutant 18% | Scavenger-Mutant Dominant Class ---------------- Mutant | -10/Materials Mutant | -10/Subcaves Scavenger-Mutant | -8/Recycling Resources | -11 -10 -10 -8 ----------- Run | Yrd Mat Sub Rec Matter Collected 695 | 332 185 178 . Remotely . | . . . . Salvage Created 561 | 131 281 127 22 Parts 38 | 13 19 4 2 Haulers Intercepted 1 | . 1 . . Recyclers Shooed . | . . . . Parts Field Recycled . | . . . . Retrieved Matter . | . . . . Parts Self-Destructed 17 | . . 17 . Prevented . | . . . . Parts Restored . | . . . . Kills | -11 -10 -10 -8 ------- Run | Yrd Mat Sub Rec Combat Hostiles Destroyed 5 | . 4 1 . Guns 5 | . 4 1 . Classes Destroyed 7 | 2 3 2 . Builder 1 | . 1 . . Tunneler 2 | 2 . . . Hauler 1 | . 1 . . Recycler 1 | 1 . . . Turret 2 | . . 2 . Grunt 4 | . 4 . . Subdweller 2 | . . 2 . Best Kill Streak 5 | 1 5 2 . Combat Bots Only 4 | . 4 1 . Max Kills in Single Turn 2 | 1 2 1 . Gunslinging . | . . . . Exploded . | . . . . Melee . | . . . . Uniques/NPCs Destroyed . | . . . . Combat | -11 -10 -10 -8 -------- Run | Yrd Mat Sub Rec Hostile Shots Fired 64 | . 30 9 25 Missed 18 | . 10 4 4 Hits 46 | . 20 5 21 Projectile 46 | . 20 5 21 AOE 8 | . . . 8 Critical Strikes 3 | . 2 . 1 Damage Taken 890 | . 266 96 528 Core 259 | . 70 12 177 Absorbed by Shields . | . . . . Core Remaining (%) 100 | 100 . . . Volleys Fired 53 | 7 39 5 2 Largest 2 | 2 2 2 2 Hottest 120 | 40 120 58 58 Shots Fired 94 | 14 65 11 4 Gun 82 | 14 53 11 4 Cannon . | . . . . Launcher . | . . . . Special 12 | . 12 . . Kinetic 82 | 14 53 11 4 Thermal 12 | . 12 . . Explosive . | . . . . Electromagnetic . | . . . . Robot Hit Streak 9 | 6 9 5 1 Robot Miss Streak 3 | 1 3 1 2 Penetration Max . | . . . . Secondary Targets . | . . . . Shots Hit Robots 59 | 10 41 7 1 Core Hits 22 | 4 13 4 1 Critical Kills . | . . . . Critical Parts Destroyed . | . . . . Critical Strikes . | . . . . Melee Attacks . | . . . . Impact . | . . . . Slashing . | . . . . Piercing . | . . . . Sneak Attacks . | . . . . Combat Hostiles . | . . . . Follow-up Attacks . | . . . . Damage Inflicted 866 | 128 572 128 38 Guns 794 | 128 500 128 38 Cannons . | . . . . Explosions . | . . . . Melee . | . . . . Ramming . | . . . . Kinetic 794 | 128 500 128 38 Thermal 72 | . 72 . . Explosive . | . . . . Electromagnetic . | . . . . Impact . | . . . . Slashing . | . . . . Piercing . | . . . . Highest Corruption 4 | . 3 3 4 Average Corruption 2 | . 1 3 3 Corruption Purged . | . . . . Corruption Blocked . | . . . . Effects 23 | . 5 18 . Message Errors 2 | . . 2 . Matter Fused 8 | . 1 7 . Heat Flow Errors 2 | . . 2 . Energy Discharges 4 | . 1 3 . Parts Fused 1 | . 1 . . Data Loss (minor) 2 | . 1 1 . Data Loss (major) 3 | . 1 2 . Misfires 1 | . . 1 . Overload Shots . | . . . . Overflow Damage . | . . . . Projectiles . | . . . . Explosions . | . . . . Melee . | . . . . Knockbacks . | . . . . Impact . | . . . . Kinetic . | . . . . Secondary . | . . . . Self-Inflicted Damage . | . . . . Shots . | . . . . Rammed . | . . . . Targets Rammed . | . . . . Kicked . | . . . . Crushed . | . . . . Highest Temperature 233 | . 40 233 18 Average Temperature 23 | . 12 97 13 Received Heat Transfer 222 | . 186 36 . Siege Activations . | . . . . Martial Activations . | . . . . Shielding Activations . | . . . . Robots Disrupted . | . . . . Combat Hostiles . | . . . . Robots Corrupted . | . . . . Combat Hostiles . | . . . . Parts Fried . | . . . . Impact Corruptions . | . . . . Robots Melted . | . . . . Combat Hostiles . | . . . . Parts Melted . | . . . . Heat Transferred 150 | . 150 . . Parts Sabotaged . | . . . . Parts Stolen . | . . . . Parts Stripped . | . . . . Power Chain Reactions . | . . . . Alert | -11 -10 -10 -8 ------- Run | Yrd Mat Sub Rec Maximum Alert Level . | . . . . Low Security (%) 100 | 100 100 . 100 Level 1 . | . . . . Level 2 . | . . . . Level 3 . | . . . . Level 4 . | . . . . Level 5 . | . . . . High Security . | . . . . Max Security . | . . . . Peak Influence 91 | 5 91 . 46 Initial 46 | . . . 46 Average 8 | 1 9 . 29 Influence Increases 341 | 15 155 166 5 Destroy 0b10 Robot/C 180 | . 80 100 . Destroy 0b10 Robot/NC 30 | 15 10 . 5 Destroy Leader 22 | . 22 . . Allied During Kill 6 | . . 6 . Successful Hack 8 | . 8 . . Disable Machine 15 | . 15 . . Destroy Structure 5 | . 5 . . Lose Combat Pursuer 75 | . 15 60 . Influence Decreases 341 | 15 155 68 103 Entered New Map 52 | . . . 52 Time Decay 208 | 15 155 28 10 Lost Part 41 | . . . 41 Lost Ally 40 | . . 40 . Squads Dispatched 2 | . 2 . . Investigation 2 | . 2 . . Extermination . | . . . . Reinforcement . | . . . . Assault . | . . . . Garrison . | . . . . Intercept . | . . . . Searches Triggered . | . . . . Construction Impeded . | . . . . Haulers Reinforced . | . . . . Active Scanning Responses . | . . . . Cargo Convoy Interrupts . | . . . . Stealth | -11 -10 -10 -8 --------- Run | Yrd Mat Sub Rec Distress Signals 2 | . 2 . . Communications Jammed . | . . . . Distress Signals . | . . . . Times Spotted 27 | . 11 12 4 Peak Tracking Total 5 | . 5 5 4 Tactical Retreats 2 | . 1 1 . Traps | -11 -10 -10 -8 ------- Run | Yrd Mat Sub Rec Traps Triggered 3 | . 3 . . Indirectly . | . . . . Trap Hack Attempts . | . . . . Triggered . | . . . . Disarmed . | . . . . Reprogrammed . | . . . . Reused . | . . . . Traps Extracted . | . . . . Installed . | . . . . Triggered . | . . . . Machines | -11 -10 -10 -8 ---------- Run | Yrd Mat Sub Rec Machines Disabled 3 | . 1 2 . Max in Single Turn 1 | . 1 1 . Machines Repaired . | . . . . Machines Dismantled . | . . . . Machines Sabotaged . | . . . . Overloaded Fab Kills . | . . . . Hacking | -11 -10 -10 -8 --------- Run | Yrd Mat Sub Rec Machines Accessed 2 | . 2 . . Terminals 2 | . 2 . . Fabricators . | . . . . Repair Stations . | . . . . Recycling Units . | . . . . Scanalyzers . | . . . . Garrison Access . | . . . . Total Hacks 5 | . 5 . . Successful 1 | . 1 . . Failed 4 | . 4 . . Catastrophic 1 | . 1 . . Database Lockouts . | . . . . Manual 5 | . 5 . . Terminals 5 | . 5 . . Fabricators . | . . . . Repair Stations . | . . . . Recycling Units . | . . . . Scanalyzers . | . . . . Garrison Access . | . . . . Terminal Hacks 1 | . 1 . . Branch Access Points 1 | . 1 . . Fabricator Hacks . | . . . . Repair Station Hacks . | . . . . Recycling Unit Hacks . | . . . . Scanalyzer . | . . . . Garrison Access Hacks . | . . . . Unauthorized Hacks . | . . . . Terminals . | . . . . Fabricators . | . . . . Repair Stations . | . . . . Recycling Units . | . . . . Scanalyzers . | . . . . Garrison Access . | . . . . Data Cores Recovered . | . . . . Used . | . . . . Hacking Detections 2 | . 2 . . Full Trace Events 2 | . 2 . . Feedback Events . | . . . . Feedback Blocked . | . . . . Robot Schematics Acquired . | . . . . Robots Built . | . . . . Authchips . | . . . . Time . | . . . . Total Robot Build Rating . | . . . . Part Schematics Acquired . | . . . . Parts Built . | . . . . Authchips . | . . . . Time . | . . . . Total Part Build Rating . | . . . . Part Studies Acquired . | . . . . Parts Repaired . | . . . . Time . | . . . . Parts Recycled . | . . . . Recycled Matter . | . . . . Retrieved Matter . | . . . . Retrieved Components . | . . . . Parts Scanalyzed . | . . . . Part Schematics Acquired . | . . . . Parts Damaged . | . . . . Bothacking | -11 -10 -10 -8 ------------ Run | Yrd Mat Sub Rec Used RIF Installer . | . . . . Robots Hacked . | . . . . Non-combat . | . . . . Combat . | . . . . Robot Hacks Applied . | . . . . Relay Couplers Released . | . . . . Fabnet Peak Effective % . | . . . . Robots Rewired . | . . . . Allies Hacked . | . . . . Hacks Repelled . | . . . . Allies | -11 -10 -10 -8 -------- Run | Yrd Mat Sub Rec Total Allies 3 | . . 3 . Largest Group 3 | . . 3 . Highest-Rated Group 57 | . . 57 . Highest-Rated Ally 19 | . . 19 . Total Orders . | . . . . Ally Attacks 20 | . . 20 . Total Damage 323 | . . 323 . Kills 5 | . . 5 . Allies Corrupted . | . . . . Allies Melted . | . . . . Intel | -11 -10 -10 -8 ------- Run | Yrd Mat Sub Rec Active Infowar (turns) 1461 | 100 1124 237 . Terrain 9 | 9 . . . Seismic 1452 | 91 1124 237 . Robot Analysis Total . | . . . . Derelict Logs Recovered 1 | . . 1 . Drone Launches . | . . . . Drone Recoveries . | . . . . Exploration | -11 -10 -10 -8 ------------- Run | Yrd Mat Sub Rec Turns Passed 2141 | 144 1124 831 42 Spaces Moved 1347 | 108 494 713 32 Core 7 | 6 . . 1 Treads . | . . . . Legs . | . . . . Wheels 1340 | 102 494 713 31 Hover . | . . . . Flight . | . . . . Fastest Speed 50 | 50 90 100 100 Average Speed 101 | 87 99 103 115 Slowest Speed 350 | 90 105 115 350 Overloaded Moves . | . . . . Propulsion Burnouts . | . . . . Robots Hopped . | . . . . Potential Cave-ins . | . . . . Cave-ins Triggered . | . . . . Exploration Rate (%) 25 | 4 56 26 16 Regions Visited 3 Branch Regions 2 Pre-discovered Areas 2 | . . 2 . Known Exits Taken . | . . . . Unknown Exits Taken 3 | 1 1 1 . Scrap Searched . | . . . . Spaces Dug 3 | . 3 . . Terrain Destroyed 4 | . 4 . . Melee . | . . . . Projectile 4 | . 4 . . AOE . | . . . . Terrain Rammed . | . . . . Walls Destroyed . | . . . . Machines Disabled . | . . . . Actions | -11 -10 -10 -8 --------- Run | Yrd Mat Sub Rec Total 2016 | 145 1037 799 35 Wait 538 | . 491 47 . Move 1344 | 107 493 712 32 Hop . | . . . . Pick Up 38 | 16 9 13 . Fast Attach 6 | 3 . 3 . Attach 8 | 5 . 2 1 Detach 1 | 1 . . . Swap 8 | 1 2 5 . Drop 20 | 5 3 12 . Fire 53 | 7 39 5 2 Melee . | . . . . Ram . | . . . . Kick . | . . . . Crush . | . . . . Escape Stasis . | . . . . Rewire . | . . . . Trap . | . . . . Miscellaneous . | . . . . Route ------- -11/Scrapyard -10/Materials (discovered 4 exits: [*Mat] / *Min x2 / [*Sub]) -10/Subcaves (discovered 2 exits: [*Mat] / [*Rec]) -8/Recycling History --------- Turn | Location | Event 6 | -11/Scrapyard | Discovered new exit (range 16) 145 | -11/Scrapyard | Entered Materials 317 | -10/Materials | Build established: Mutant 396 | -10/Materials | Discovered new exit (range 12) 491 | -10/Materials | Discovered new exit (range 9) 595 | -10/Materials | Identified exit to Mines 645 | -10/Materials | Derelicts attacked the area 1269 | -10/Materials | Entered Subcaves 1270 | -10/Subcaves | Approached by a straggling Scientist 1340 | -10/Subcaves | A swath of the cavern ceiling suddenly collapsed 1372 | -10/Subcaves | Learned location of Zion (-6) 1372 | -10/Subcaves | Met a Zionite searching for "candidates" 1494 | -10/Subcaves | Shifting Twisted Machinery released Scrap Shield 1545 | -10/Subcaves | Discovered new exit (range 14) 1619 | -10/Subcaves | Visited triangular shrine 1626 | -10/Subcaves | Found Prototype Device 1627 | -10/Subcaves | Identified V3-11A's Pendant 1632 | -10/Subcaves | Befriended Subdweller 1773 | -10/Subcaves | Befriended Subdweller 1783 | -10/Subcaves | Befriended Subdweller 2025 | -10/Subcaves | Discovered new exit (range 12) 2047 | -10/Subcaves | Build established: Scavenger-Mutant 2066 | -10/Subcaves | Lost 3 allies 2100 | -10/Subcaves | Entered Recycling 2130 | -8/Recycling | Core integrity fell below 50% 2137 | -8/Recycling | Core integrity fell below 20% 2142 | -8/Recycling | Destroyed by D-53 Grenadier with Mini Grenade Launcher Last Messages --------------- 02124_ P-60 Hacker springs to life. 02124_ Sub. Machine Gun destroyed. 02125_ B-36 Bruiser springs to life. 02126_ H-55 Commando springs to life. 02126_ U-05 Engineer lays Concrete. 02127_ Sub. Monowheel destroyed. 02127_ R-06 Scavenger destroyed. 02127_ G-47 Trooper destroyed. 02128_ U-05 Engineer lays Concrete. 02129_ Penetrated by Slug. 02129_ U-05 Engineer lays Concrete. 02129_ Barrage Gun destroyed. 02129_ R-06 Scavenger destroyed. 02129_ U-05 Engineer destroyed. 02131_ Com. Wheel destroyed. 02132_ The unstable cave ceiling collapses. 02136_ Sub. Power Source destroyed. 02139_ V3-11A's Pendant destroyed. 02141_ Penetrated by Slug. 02141_ Com. Wheel destroyed. Map ----- +----------------------------------------------------+ | ????????????????????????????????????????????? | | ????????????????????????????????????????????? | | ????????????????????????????????????????????? | | ????????????????????????????????????????????? | | ????????????????????????????????????????????? | | ????????????????????????????????????????????? | | ????????????????????????????????????????????? | | ????????????????????????????????????????????? | | ????????????????????????????????????????????? | | ????????????????????????????????????????????? | | ????????????????????????????????????????????? | | ????????????????????????????????????????????? | | ????????????????????????????????????????????? | | ????????????????????????????????????????????? | | ????????????????????????????????????????????? | | ????????????????????????????????????????????? | | ????????????????????????????????????????????? | | ????????????????????????????????????????????? | | ????????????????????????????????????????????? | | ??????????????????###+###???????????????????? | | ??????????????????# #???????????????????? | | ??????????????????# #???????????????????? | | ??????????????????# #???????????????????? | | ??????????????????# #???????????????????? | | ??????????????????# #???????????????????? | | ???????????????????#@ #????????????????????? | | ???????????????????# ##???????????????????? | | ??????????????????## ##??????????????????? | | ?????????????????## ""#??????????????????? | | ?????????????????# Y"#??????????????????? | | ?????????????????## ""#??????????????????? | | ????????????????### ##??????????????????? | | ??########???#### #??##??????????????? | | ??# #???#!!! #?""#??????????????? | | ??# #####!!! d #"Y"#######????????? | | ??# # %b ????????? | | ??# # ???????? | | ??# # ????????? | | ??# # #### #% ##########?????????? | | ??# + #?# % p % #????????????? | | ??# # #?# r %#????????????? | | ??# # #?# #????????????? | | ??# # #?# [ ![ #????????????? | | ??# # #?# % #????????????? | | ??# # #?# [[#????????????? | | ??# #####?# ![ #????????????? | | ??##### #??????# | ! #????????????? | | ??????##???????#% %!! #????????????? | | ???????????????# ! #????????????? | | ???????????????#################????????????? | +----------------------------------------------------+ Best States ------------- Heat Dissipation 25 Energy Generation 15 Energy Capacity 200 Matter Stores 300 Matter Capacity 300 Sight Range 16 Terrain Scan Range 16 Terrain Scan Density 10 Armor Coverage 800 Evasion (%) 42 Item Schematics ----------------- None Robot Schematics ------------------ None Fabricated ------------ Nothing Repaired ---------- Nothing Studied --------- None Alien Tech Used ----------------- None Achievements -------------- SUBSUB Challenges ------------ None Game ------ Seed MissileNovaCarapace Manual? 0 Play Time 00:25:17 Cumulative 26.7 hours Start 2026.04.12 @ 12:53:38 End 2026.04.12 @ 13:29:21 Sessions 1 Manual Loads 0 Difficulty Rogue Special Mode None Game No. 17 Rogue 8 Adventurer 0 Explorer 9 Win Type - Total 1 Types 1/0/0/0/0/0/0/0/0/0 Lore% 14 Gallery% 24 Achievement% 31 Wizard Run 0 Options --------- Layout 0 ASCII 0 Keyboard 0 Movement Mouse Keybinds 0 Fullscreen 1 Font 18/SmallcapsGlow Map View 76x50 Zoom Use 0% Tactical HUD 1 Map Filters NONE Filters NONE Steam 1 RUN: e5ff7354-1044-4ae5-bbd1-cff3cf783750